fUST/lending_fUST_20241230
["ID","MTS","AMOUNT","RATE_DAILY","PERIOD"]
[347190088,1735555319642,-500.0,0.00028,30]
[347190089,1735555319694,-500.0,0.00028,30]
[347190090,1735555319744,-500.0,0.00028,30]
[347190091,1735555319792,-500.0,0.00028,30]
[347190092,1735555319840,-500.0,0.00028,30]
[347190093,1735555319892,-500.0,0.00028,30]
[347190094,1735555319941,-500.0,0.00028,30]
[347190095,1735555319991,-500.0,0.00028,30]
[347190096,1735555320043,-500.8453046,0.00028,30]
[347190097,1735555320096,-700.0,0.00028,30]
[347190098,1735555320223,-700.0,0.00028,30]
[347190099,1735555320277,-700.0,0.00028,30]
[347190100,1735555320330,-700.0,0.00028,30]
[347190101,1735555320383,-182.64424314,0.00028,30]
[347190102,1735555320436,-700.0,0.00028,30]
[347190103,1735555320493,-700.0,0.00028,30]
[347190104,1735555320542,-499.3,0.00028,30]
[347190105,1735555320592,-700.0,0.00028,30]
[347190106,1735555320641,-190.0,0.00028,30]
[347190107,1735555320694,-700.0,0.00028,30]
[347190108,1735555320750,-700.0,0.00028,30]
[347190109,1735555320804,-700.0,0.00028,30]
[347190110,1735555320864,-500.91401873,0.00028,30]
[347190111,1735555320923,-500.0,0.00028,30]
[347190112,1735555320983,-700.0,0.00028,30]
[347190113,1735555321057,-500.0,0.00028,30]
[347190114,1735555321122,-502.61417376,0.00028,30]
[347190115,1735555321183,-700.0,0.00028,30]
[347190116,1735555321242,-500.0,0.00028,30]
[347190117,1735555321298,-700.0,0.00028,30]
[347190118,1735555321355,-500.0,0.00028,30]
[347190119,1735555321408,-500.0,0.00028,30]
[347190120,1735555321460,-500.0,0.00028,30]
[347190121,1735555321511,-500.42309381,0.00028,30]
[347190122,1735555321566,-500.0,0.00028,30]
[347190123,1735555321616,-500.0,0.00028,30]
[347190124,1735555321666,-163.93203612,0.00028,30]
[347190125,1735555321715,-6116.74,0.000281,30]
[347190126,1735555321766,-18453.85,0.000281,30]
[347190127,1735555321820,-405.33234,0.000282,120]
[347190128,1735555321873,-585.973,0.0002899,120]
[347190129,1735555321928,-340.24132636,0.00029,30]
[347190130,1735555321979,-348.0,0.00029,30]
[347190131,1735555322033,-13709.07679026,0.00029,30]
[347190132,1735555322088,-263.4704,0.00029,120]
[347190133,1735555322141,-500.0,0.00029,120]
[347190134,1735555322192,-150.5,0.0002927,120]
[347190135,1735555322242,-150.5,0.0002927,120]
[347190136,1735555322297,-271.72,0.0002927,120]
[347190137,1735555322354,-150.5,0.0002927,120]
[347190138,1735555322407,-150.5,0.0002927,120]
[347190139,1735555322461,-150.5,0.0002928,120]
[347190140,1735555322513,-150.5,0.0002928,120]
[347190141,1735555322568,-150.5,0.0002928,120]
[347190142,1735555322622,-150.5,0.0002928,120]
[347190143,1735555322674,-150.5,0.0002928,120]
[347190144,1735555322727,-150.5,0.0002929,120]
[347190145,1735555322779,-150.5,0.0002929,120]
[347190146,1735555322831,-150.5,0.0002929,120]
[347190147,1735555322885,-150.5,0.0002929,120]
[347190148,1735555322936,-175.44,0.0002929,120]
[347190149,1735555322988,-150.5,0.0002929,120]
[347190150,1735555323043,-241.1,0.0002929,120]
[347190151,1735555323101,-405.33234,0.000294,120]
[347190152,1735555323160,-175.07073606,0.000299,120]
[347190153,1735555323217,-158.47599417,0.00029996,120]
[347190154,1735555323277,-9974.0,0.0003,30]
[347190155,1735555323345,-7291.70539402,0.0003,30]
[347190156,1735555323416,-17667.59065278,0.0003,30]
[347190157,1735555323484,-200000.0,0.0003,30]
[347190158,1735555323552,-338.26228967,0.0003,30]
[347190159,1735555323609,-37153.93679792,0.0003,30]
[347190160,1735555323663,-151.0,0.0003,120]
[347190161,1735555323717,-151.0,0.0003,120]
[347190162,1735555323776,-1000.0,0.0003,120]
[347190163,1735555323827,-5164.75756255,0.0003,120]
[347190164,1735555323880,-9122.51734266,0.0003001,30]
[347190165,1735555323932,-500.0,0.00030136,120]
[347190166,1735555324000,-500.0,0.00030136,120]
[347190167,1735555324070,-500.0,0.00030136,120]
[347190168,1735555324127,-500.0,0.00030136,120]
[347190169,1735555324182,-500.0,0.00030136,120]
[347190170,1735555324235,-500.0,0.00030136,120]
[347190171,1735555324289,-500.0,0.00030136,120]
[347190172,1735555324427,-500.0,0.00030136,120]
[347190173,1735555324479,-500.0,0.00030136,120]
[347190174,1735555324531,-500.0,0.00030136,120]
[347190175,1735555324580,-500.0,0.00030136,120]
[347190176,1735555324630,-500.0,0.00030136,120]
[347190177,1735555324680,-500.0,0.00030136,120]
[347190178,1735555324729,-500.0,0.00030136,120]
[347190179,1735555324779,-327.01996183,0.00030136,120]
[347190180,1735555324828,-416.46593028,0.00030137,60]
[347190181,1735555364859,1122.41254338,0.00025,120]
[347190182,1735555448888,500.0,0.00021548,120]
[347191048,1735555755629,-300.0,0.0001233,2]
[347191049,1735555755671,-394.29997672,0.00012331,2]
[347191050,1735555755829,-105.70002328,0.00012331,2]
[347191051,1735555755863,-500.0,0.00012331,2]
[347191052,1735555755899,-500.0,0.00012331,2]
[347191053,1735555755932,-500.0,0.00012331,2]
[347191054,1735555755969,-52.7819143,0.00012331,2]
[347191110,1735555780553,-447.2180857,0.00012331,2]
[347191111,1735555780579,-514.92167543,0.00012331,2]
[347191112,1735555780605,-500.0,0.00012331,2]
[347191113,1735555780631,-242.20155865,0.00012331,2]
[347191114,1735555780667,-257.79844135,0.00012331,2]
[347191115,1735555780692,-500.0,0.00012331,2]
[347191116,1735555780719,-500.0,0.00012331,2]
[347191117,1735555780746,-447.73913452,0.00012331,2]
[347191119,1735555805625,-300.0,0.0001233,2]
[347191120,1735555805656,-52.26086548,0.00012331,2]
[347191121,1735555805682,-500.0,0.00012331,2]
[347191122,1735555805708,-500.0,0.00012331,2]
[347191123,1735555805736,-421.4742883,0.00012331,2]
[347191124,1735555805766,-21.6357117,0.00012331,2]
[347191125,1735555805790,-500.0,0.00012331,2]
[347191126,1735555805816,-500.0,0.00012331,2]
[347191127,1735555805841,-210.86845765,0.00012331,2]
[347191128,1735555830395,400.06190881,0.00012086,2]
[347191156,1735555835750,-1622.7916746,0.00012208,2]
[347191157,1735555835786,-606.15854373,0.00012208,2]
[347191158,1735555835795,-500.0,0.0001233,2]
[347191159,1735555835804,-141.39146127,0.0001233,2]
[347191160,1735555835815,-371.58492115,0.0001233,2]
[347191161,1735555835824,-205.78507885,0.0001233,2]
[347191162,1735555835847,-415.3794905,0.0001233,2]
[347191163,1735555835856,-500.0,0.0001233,2]
[347191164,1735555835865,-500.0,0.0001233,2]
[347191165,1735555835874,-500.0,0.0001233,2]
[347191166,1735555835883,-500.0,0.0001233,2]
[347191167,1735555835892,-233.28505309,0.0001233,2]
[347191168,1735555835901,-500.0,0.0001233,2]
[347191169,1735555835910,-500.0,0.0001233,2]
[347191170,1735555835919,-500.0,0.0001233,2]
[347191171,1735555835928,-188.73917016,0.0001233,2]
[347191172,1735555835937,-289.13154235,0.00012331,2]
[347191173,1735555835947,-500.0,0.00012331,2]
[347191174,1735555835956,-614.89580591,0.00012331,2]
[347191175,1735555835965,-502.76467066,0.00012331,2]
[347191176,1735555835975,-340.49369045,0.00012331,2]
[347191177,1735555835984,-500.0,0.00012331,2]
[347191178,1735555835993,-500.0,0.00012331,2]
[347191179,1735555836002,-500.0,0.00012331,2]
[347191180,1735555836013,-500.0,0.00012331,2]
[347191181,1735555836022,-526.28,0.00012331,2]
[347191182,1735555836033,-500.0,0.00012331,2]
[347191183,1735555836042,-500.0,0.00012331,2]
[347191184,1735555836051,-500.0,0.00012331,2]
[347191185,1735555836061,-500.0,0.00012331,2]
[347191186,1735555836071,-500.0,0.00012331,2]
[347191187,1735555836080,-216.0355495,0.00012331,2]
[347191188,1735555836090,-501.09466008,0.00012331,2]
[347191189,1735555836100,-500.0,0.00012331,2]
[347191190,1735555836109,-500.0,0.00012331,2]
[347191191,1735555836119,-500.0,0.00012331,2]
[347191192,1735555836128,-500.0,0.00012331,2]
[347191193,1735555836138,-500.0,0.00012331,2]
[347191194,1735555836147,-500.0,0.00012331,2]
[347191195,1735555836157,-500.0,0.00012331,2]
[347191196,1735555836166,-500.0,0.00012331,2]
[347191197,1735555836176,-500.42590604,0.00012331,2]
[347191198,1735555836185,-500.0,0.00012331,2]
[347191199,1735555836195,-500.0,0.00012331,2]
[347191200,1735555836205,-500.0,0.00012331,2]
[347191201,1735555836214,-500.0,0.00012331,2]
[347191202,1735555836223,-500.0,0.00012331,2]
[347191203,1735555836233,-447.56,0.00012331,2]
[347191204,1735555836242,-519.66,0.00012331,2]
[347191205,1735555836252,-500.0,0.00012331,2]
[347191206,1735555836262,-500.22333738,0.00012331,2]
[347191207,1735555836271,-500.0,0.00012331,2]
[347191208,1735555836281,-500.0,0.00012331,2]
[347191209,1735555836290,-502.02025665,0.00012331,2]
[347191210,1735555836299,-500.0,0.00012331,2]
[347191211,1735555836309,-500.0,0.00012331,2]
[347191212,1735555836318,-554.90507457,0.00012331,2]
[347191213,1735555836327,-1298.95,0.00012331,2]
[347191214,1735555836336,-500.0,0.00012331,2]
[347191215,1735555836345,-500.0,0.00012331,2]
[347191216,1735555836354,-500.0,0.00012331,2]
[347191217,1735555836363,-500.0,0.00012331,2]
[347191218,1735555836372,-501.15759538,0.00012331,2]
[347191219,1735555836381,-500.0,0.00012331,2]
[347191220,1735555836390,-500.0,0.00012331,2]
[347191221,1735555836399,-500.0,0.00012331,2]
[347191222,1735555836408,-500.0,0.00012331,2]
[347191223,1735555836418,-500.0,0.00012331,2]
[347191224,1735555836427,-500.0,0.00012331,2]
[347191225,1735555836437,-500.0,0.00012331,2]
[347191226,1735555836446,-500.0,0.00012331,2]
[347191227,1735555836455,-500.0,0.00012331,2]
[347191228,1735555836467,-500.0,0.00012331,2]
[347191229,1735555836476,-500.0,0.00012331,2]
[347191230,1735555836485,-500.0,0.00012331,2]
[347191231,1735555836494,-500.0,0.00012331,2]
[347191232,1735555836502,-500.0,0.00012331,2]
[347191233,1735555836511,-500.0,0.00012331,2]
[347191234,1735555836520,-500.0,0.00012331,2]
[347191235,1735555836530,-500.0,0.00012331,2]
[347191236,1735555836539,-500.0,0.00012331,2]
[347191237,1735555836549,-500.0,0.00012331,2]
[347191238,1735555836558,-500.0,0.00012331,2]
[347191239,1735555836567,-2545.18,0.00012331,2]
[347191240,1735555836578,-209.22446935,0.00012331,2]
[347191241,1735555836588,-500.0,0.00012331,2]
[347191242,1735555836597,-563.58190215,0.00012331,2]
[347191243,1735555836606,-597.4016462,0.00012331,2]
[347191244,1735555836615,-500.0,0.00012331,2]
[347191245,1735555836624,-500.0,0.00012331,2]
[347191246,1735555836633,-500.0,0.00012331,2]
[347191247,1735555836643,-500.0,0.00012331,2]
[347191248,1735555836657,-500.0,0.00012331,2]
[347191249,1735555836666,-500.0,0.00012331,2]
[347191250,1735555836676,-500.0,0.00012331,2]
[347191251,1735555836685,-500.0,0.00012331,2]
[347191252,1735555836695,-500.0,0.00012331,2]
[347191253,1735555836704,-500.0,0.00012331,2]
[347191254,1735555836714,-500.0,0.00012331,2]
[347191255,1735555836723,-328.28,0.00012331,2]
[347191256,1735555836733,-500.32111595,0.00012331,2]
[347191257,1735555836743,-500.0,0.00012331,2]
[347191258,1735555836752,-500.0,0.00012331,2]
[347191259,1735555836761,-500.0,0.00012331,2]
[347191260,1735555836770,-500.0,0.00012331,2]
[347191261,1735555836779,-609.04786895,0.00012331,2]
[347191262,1735555836790,-500.0,0.00012331,2]
[347191263,1735555836800,-500.0,0.00012331,2]
[347191264,1735555836809,-500.0,0.00012331,2]
[347191265,1735555836818,-500.0,0.00012331,2]
[347191266,1735555836827,-500.0,0.00012331,2]
[347191267,1735555836919,-500.0,0.00012331,2]
[347191268,1735555836929,-500.0,0.00012331,2]
[347191269,1735555836938,-544.04,0.00012331,2]
[347191270,1735555836947,-500.0,0.00012331,2]
[347191271,1735555836956,-500.0,0.00012331,2]
[347191272,1735555836965,-501.70071587,0.00012331,2]
[347191273,1735555836974,-500.0,0.00012331,2]
[347191274,1735555836983,-388.48438315,0.00012331,2]
[347191275,1735555836992,-500.0,0.00012331,2]
[347191276,1735555837002,-500.74447289,0.00012331,2]
[347191277,1735555837011,-519.64,0.00012331,2]
[347191278,1735555837020,-504.01450601,0.00012331,2]
[347191279,1735555837029,-4930.25,0.00012331,2]
[347191280,1735555837039,-500.0,0.00012331,2]
[347191281,1735555837049,-24584.332978,0.00012332,2]
[347191282,1735555837058,-355.9213229,0.00012537,2]
[347191283,1735555837068,-500.0,0.00012605,2]
[347191284,1735555837077,-500.24,0.00012605,2]
[347191285,1735555837086,-500.0,0.00012605,2]
[347191286,1735555837095,-500.0,0.00012605,2]
[347191287,1735555837105,-500.0,0.00012605,2]
[347191288,1735555837114,-500.0,0.00012605,2]
[347191289,1735555837124,-500.0,0.00012605,2]
[347191290,1735555837134,-500.0,0.00012605,2]
[347191291,1735555837143,-500.0,0.00012605,2]
[347191292,1735555837153,-500.0,0.00012605,2]
[347191293,1735555837162,-500.0,0.00012605,2]
[347191294,1735555837171,-500.0,0.00012605,2]
[347191295,1735555837181,-151.93,0.00012605,2]
[347191296,1735555837190,-500.0,0.00012605,2]
[347191297,1735555837203,-500.0,0.00012605,2]
[347191298,1735555837214,-500.0,0.00012605,2]
[347191299,1735555837224,-500.0,0.00012605,2]
[347191300,1735555837234,-500.0,0.00012605,2]
[347191301,1735555837243,-500.0,0.00012605,2]
[347191302,1735555837252,-560.58866601,0.00012605,2]
[347191303,1735555837262,-519.66,0.00012605,2]
[347191304,1735555837271,-500.0,0.00012605,2]
[347191305,1735555837280,-500.0,0.00012605,2]
[347191306,1735555837289,-500.0,0.00012605,2]
[347191307,1735555837299,-500.0,0.00012605,2]
[347191308,1735555837308,-1298.95,0.00012605,2]
[347191309,1735555837317,-500.0,0.00012605,2]
[347191310,1735555837327,-500.0,0.00012605,2]
[347191311,1735555837336,-500.0,0.00012605,2]
[347191312,1735555837345,-500.0,0.00012605,2]
[347191313,1735555837354,-500.0,0.00012605,2]
[347191314,1735555837364,-227.55826217,0.00012605,2]
[347191315,1735555837373,-500.0,0.00012605,2]
[347191316,1735555837383,-500.0,0.00012605,2]
[347191317,1735555837392,-500.0,0.00012605,2]
[347191318,1735555837402,-2545.18,0.00012605,2]
[347191319,1735555837411,-500.0,0.00012605,2]
[347191320,1735555837420,-500.0,0.00012605,2]
[347191321,1735555837430,-500.0,0.00012605,2]
[347191322,1735555837439,-347.28108892,0.00012605,2]
[347191323,1735555837448,-500.0,0.00012605,2]
[347191324,1735555837458,-500.0,0.00012605,2]
[347191325,1735555837467,-500.0,0.00012605,2]
[347191326,1735555837476,-500.0,0.00012605,2]
[347191327,1735555837486,-500.0,0.00012605,2]
[347191328,1735555837495,-500.0,0.00012605,2]
[347191329,1735555837504,-500.0,0.00012605,2]
[347191330,1735555837514,-4930.25,0.00012605,2]
[347191331,1735555837523,-9819.23017552,0.00012878,2]
[347191332,1735555837532,-500.0,0.00012879,2]
[347191333,1735555837542,-500.0,0.00012879,2]
[347191334,1735555837551,-500.0,0.00012879,2]
[347191335,1735555837561,-500.0,0.00012879,2]
[347191338,1735555837570,-500.0,0.00012879,2]
[347191341,1735555837579,-500.0,0.00012879,2]
[347191343,1735555837588,-500.0,0.00012879,2]
[347191345,1735555837598,-500.0,0.00012879,2]
[347191346,1735555837607,-500.0,0.00012879,2]
[347191347,1735555837616,-500.0,0.00012879,2]
[347191348,1735555837626,-500.0,0.00012879,2]
[347191349,1735555837635,-500.0,0.00012879,2]
[347191350,1735555837644,-500.0,0.00012879,2]
[347191351,1735555837658,-500.0,0.00012879,2]
[347191352,1735555837667,-500.0,0.00012879,2]
[347191353,1735555837676,-519.66,0.00012879,2]
[347191354,1735555837686,-500.0,0.00012879,2]
[347191355,1735555837697,-500.0,0.00012879,2]
[347191356,1735555837706,-500.0,0.00012879,2]
[347191357,1735555837715,-1298.95,0.00012879,2]
[347191358,1735555837726,-500.0,0.00012879,2]
[347191359,1735555837735,-500.0,0.00012879,2]
[347191360,1735555837745,-352.7475135,0.00012879,2]
[347191390,1735555838220,-457.45625124,0.0001233,2]
[347191391,1735555838230,-500.0,0.00012331,2]
[347191392,1735555838239,-452.11077268,0.00012331,2]
[347191393,1735555838250,-49.46757295,0.00012331,2]
[347191394,1735555838259,-500.0,0.00012605,2]
[347191395,1735555838268,-147.2524865,0.00012879,2]
[347191396,1735555838278,-548.05,0.00012879,2]
[347191397,1735555838287,-500.0,0.00012879,2]
[347191398,1735555838296,-500.0,0.00012879,2]
[347191399,1735555838306,-500.0,0.00012879,2]
[347191400,1735555838316,-2545.18,0.00012879,2]
[347191401,1735555838325,-500.0,0.00012879,2]
[347191402,1735555838335,-541.18437752,0.00012879,2]
[347191403,1735555838344,-500.0,0.00012879,2]
[347191404,1735555838353,-500.0,0.00012879,2]
[347191405,1735555838362,-500.0,0.00012879,2]
[347191406,1735555838372,-477.31241253,0.00012879,2]
[347191407,1735555838384,-22.68758747,0.00012879,2]
[347191408,1735555838393,-500.0,0.00012879,2]
[347191409,1735555838401,-2821.0068388,0.00012879,2]
[347191410,1735555838431,-2109.2431612,0.00012879,2]
[347191411,1735555838440,-1063.03678379,0.000129,2]
[347191412,1735555838449,-1063.03678379,0.000129,2]
[347191413,1735555838458,-500.0,0.00013153,2]
[347191414,1735555838467,-500.0,0.00013153,2]
[347191415,1735555838476,-500.0,0.00013153,2]
[347191416,1735555838485,-466.94,0.00013153,2]
[347191417,1735555838494,-500.0,0.00013153,2]
[347191418,1735555838503,-500.0,0.00013153,2]
[347191419,1735555838512,-500.0,0.00013153,2]
[347191420,1735555838522,-500.0,0.00013153,2]
[347191421,1735555838531,-500.0,0.00013153,2]
[347191422,1735555838540,-500.0,0.00013153,2]
[347191423,1735555838549,-500.0,0.00013153,2]
[347191424,1735555838558,-500.0,0.00013153,2]
[347191425,1735555838567,-500.0,0.00013153,2]
[347191426,1735555838576,-500.0,0.00013153,2]
[347191427,1735555838586,-500.0,0.00013153,2]
[347191428,1735555838595,-519.66,0.00013153,2]
[347191429,1735555838604,-500.0,0.00013153,2]
[347191430,1735555838613,-400.27,0.00013153,2]
[347191431,1735555838622,-1298.95,0.00013153,2]
[347191432,1735555838631,-500.0,0.00013153,2]
[347191433,1735555838640,-500.0,0.00013153,2]
[347191434,1735555838652,-500.0,0.00013153,2]
[347191435,1735555838661,-500.0,0.00013153,2]
[347191436,1735555838671,-500.0,0.00013153,2]
[347191437,1735555838680,-281.33122712,0.00013153,2]
[347191438,1735555838690,-2545.18,0.00013153,2]
[347191439,1735555838699,-500.0,0.00013153,2]
[347191440,1735555838709,-500.0,0.00013153,2]
[347191441,1735555838718,-500.0,0.00013153,2]
[347191442,1735555838727,-500.0,0.00013153,2]
[347191443,1735555838737,-500.0,0.00013153,2]
[347191444,1735555838746,-4930.25,0.00013153,2]
[347191445,1735555838755,-1063.03678379,0.0001317,2]
[347191446,1735555838765,-561.01924514,0.00013231,2]
[347191447,1735555838774,-500.0,0.0001333,2]
[347191448,1735555838783,-500.0,0.0001333,2]
[347191449,1735555838792,-500.0,0.0001333,2]
[347191450,1735555838801,-500.0,0.0001333,2]
[347191451,1735555838810,-6450.16,0.0001333,2]
[347191452,1735555838820,-500.0,0.0001333,2]
[347191453,1735555838829,-500.0,0.0001333,2]
[347191454,1735555838838,-500.0,0.0001333,2]
[347191455,1735555838847,-500.0,0.0001333,2]
[347191456,1735555838856,-500.0,0.0001333,2]
[347191457,1735555838866,-500.0,0.0001333,2]
[347191458,1735555838875,-500.0,0.0001333,2]
[347191459,1735555838884,-510.38972423,0.0001333,2]
[347191460,1735555838966,-255.87189111,0.0001333,2]
[347191461,1735555838976,-500.0,0.0001333,2]
[347191462,1735555838985,-500.0,0.0001333,2]
[347191463,1735555838995,-500.0,0.0001333,2]
[347191464,1735555839004,-500.0,0.0001333,2]
[347191465,1735555839014,-500.0,0.0001333,2]
[347191466,1735555839023,-500.0,0.0001333,2]
[347191467,1735555839032,-500.0,0.0001333,2]
[347191468,1735555839042,-500.0,0.0001333,2]
[347191469,1735555839051,-500.0,0.0001333,2]
[347191470,1735555839060,-2672.9,0.0001333,2]
[347191471,1735555839069,-2672.9,0.0001333,2]
[347191472,1735555839079,-500.0,0.0001333,2]
[347191473,1735555839088,-500.0,0.0001333,2]
[347191474,1735555839097,-501.74495404,0.0001333,2]
[347191475,1735555839106,-500.0,0.0001333,2]
[347191476,1735555839115,-500.0,0.0001333,2]
[347191477,1735555839125,-500.0,0.0001333,2]
[347191478,1735555839134,-606.14951666,0.0001333,2]
[347191479,1735555839143,-312.2158201,0.0001333,2]
[347191480,1735555839153,-502.28296245,0.00013331,2]
[347191481,1735555839163,-500.0,0.00013331,2]
[347191482,1735555839172,-500.0,0.00013331,2]
[347191483,1735555839181,-495.13268368,0.00013331,2]
[347191484,1735555839190,-554.14804999,0.00013331,2]
[347191485,1735555839200,-585.23488923,0.00013331,2]
[347191486,1735555839210,-500.0,0.00013331,2]
[347191487,1735555839220,-500.0,0.00013331,2]
[347191488,1735555839230,-558.21934189,0.00013331,2]
[347191489,1735555839240,-507.04536,0.00013331,2]
[347191490,1735555839249,-500.0,0.00013331,2]
[347191491,1735555839258,-500.0,0.00013331,2]
[347191492,1735555839268,-500.0,0.00013331,2]
[347191493,1735555839278,-500.0,0.00013331,2]
[347191494,1735555839288,-500.0,0.00013331,2]
[347191495,1735555839298,-500.0,0.00013331,2]
[347191497,1735555839308,-500.0,0.00013331,2]
[347191498,1735555839318,-500.0,0.00013331,2]
[347191499,1735555839328,-500.0,0.00013331,2]
[347191500,1735555839337,-500.0,0.00013331,2]
[347191501,1735555839347,-500.0,0.00013331,2]
[347191502,1735555839357,-500.0,0.00013331,2]
[347191503,1735555839367,-500.0,0.00013331,2]
[347191504,1735555839376,-500.0,0.00013331,2]
[347191505,1735555839386,-500.0,0.00013331,2]
[347191506,1735555839395,-500.0,0.00013331,2]
[347191507,1735555839404,-500.0,0.00013331,2]
[347191508,1735555839414,-550.37284806,0.00013331,2]
[347191509,1735555839423,-501.34607542,0.00013331,2]
[347191510,1735555839433,-500.0,0.00013331,2]
[347191511,1735555839442,-500.0,0.00013331,2]
[347191512,1735555839451,-449.29853424,0.00013331,2]
[347191513,1735555839460,-500.0,0.00013331,2]
[347191514,1735555839470,-500.0,0.00013331,2]
[347191515,1735555839479,-443.62502219,0.00013331,2]
[347191516,1735555839488,-500.0,0.00013331,2]
[347191517,1735555839498,-501.44856456,0.00013331,2]
[347191518,1735555839507,-505.00138099,0.00013331,2]
[347191519,1735555839516,-503.33198276,0.00013331,2]
[347191520,1735555839526,-500.0,0.00013331,2]
[347191521,1735555839535,-500.47267232,0.00013331,2]
[347191522,1735555839544,-500.50975555,0.00013331,2]
[347191523,1735555839553,-383.52264034,0.00013331,2]
[347191524,1735555839562,-501.64212445,0.00013331,2]
[347191525,1735555839571,-500.0,0.00013331,2]
[347191526,1735555839580,-500.82494518,0.00013331,2]
[347191528,1735555839590,-500.0,0.00013331,2]
[347191530,1735555839599,-500.0,0.00013331,2]
[347191531,1735555839609,-500.0,0.00013331,2]
[347191532,1735555839619,-500.0,0.00013331,2]
[347191533,1735555839629,-500.0,0.00013331,2]
[347191534,1735555839638,-500.0,0.00013331,2]
[347191535,1735555839648,-500.0,0.00013331,2]
[347191536,1735555839662,-500.0,0.00013331,2]
[347191537,1735555839671,-501.41687092,0.00013331,2]
[347191538,1735555839679,-500.0,0.00013331,2]
[347191539,1735555839688,-500.0,0.00013331,2]
[347191540,1735555839698,-500.0,0.00013331,2]
[347191541,1735555839707,-500.0,0.00013331,2]
[347191542,1735555839717,-500.0,0.00013331,2]
[347191543,1735555839727,-500.0,0.00013331,2]
[347191544,1735555839736,-500.0,0.00013331,2]
[347191545,1735555839746,-500.0,0.00013331,2]
[347191546,1735555839755,-500.0,0.00013331,2]
[347191548,1735555839764,-500.0,0.00013331,2]
[347191550,1735555839773,-500.0,0.00013331,2]
[347191552,1735555839783,-500.65827239,0.00013331,2]
[347191553,1735555839792,-501.1839175,0.00013331,2]
[347191554,1735555839801,-505.22532332,0.00013331,2]
[347191555,1735555839810,-500.0,0.00013331,2]
[347191556,1735555839820,-500.0,0.00013331,2]
[347191557,1735555839829,-500.0,0.00013331,2]
[347191558,1735555839838,-500.0,0.00013331,2]
[347191559,1735555839847,-500.0,0.00013331,2]
[347191560,1735555839856,-500.0,0.00013331,2]
[347191561,1735555839865,-500.0,0.00013331,2]
[347191562,1735555839875,-500.0,0.00013331,2]
[347191563,1735555839884,-503.48872731,0.00013331,2]
[347191564,1735555839893,-500.0,0.00013331,2]
[347191566,1735555839902,-502.83758329,0.00013331,2]
[347191567,1735555839912,-500.0,0.00013331,2]
[347191568,1735555839921,-500.0,0.00013331,2]
[347191569,1735555839930,-500.0,0.00013331,2]
[347191570,1735555839939,-500.0,0.00013331,2]
[347191571,1735555839949,-500.0,0.00013331,2]
[347191572,1735555839958,-500.0,0.00013331,2]
[347191573,1735555839967,-500.0,0.00013331,2]
[347191574,1735555839977,-500.0,0.00013331,2]
[347191575,1735555839986,-500.0,0.00013331,2]
[347191576,1735555839995,-500.0,0.00013331,2]
[347191577,1735555840005,-500.71127326,0.00013331,2]